Workbook

Sheet štruktúra zamestnancov
C2: Model na štruktúru zamestnancov vykonávajúcich podporné IT-backoffice činnosti | I2: Referenčná pracovná pozícia
C5: Vykonávajú IT pracovníci základnú údržbu IKT zariadení úradu alebo rezortu ministerstva alebo iného ÚOŠS? | G5: Zadajte hodnotu "áno" v prípade, ak IT zamestnanci zabezpečujú servis softvéru, hardvéru, multifunkčných kopírovacích strojov a telekomunikačných zariadení. | I5: =IF(E5="áno","IT technik","") -> 
C7: Vykonávajú IT pracovníci prevádzku a administráciu rezortnej počítačovej siete? | G7: Zadajte hodnotu "áno" v prípade, ak IT zamestnanci zabezpečujú prevádzku a administráciu rezortnej počítačovej siete. Súčasťou práce je prevádzka serverov zabezpečujúcich sieťové služby ako napríklad mail, ftp, autorizačné a autentifikačné služby. | I7: =IF(E7="áno","Sieťový administrátor","") -> 
C9: Vykonávajú IT pracovníci správu a administráciu serverov úradu alebo rezortu ministerstva alebo iného ÚOŠS? | G9: Zadajte hodnotu "áno" v prípade, ak IT zamestnanci zabezpečujú inštaláciu, konfiguráciu, správu, monitoring, zálohovanie, archiváciu a obnovu centrálnych systémov a dát na serveroch. | I9: =IF(E9="áno","Sieťový administrátor","") -> 
C11: Vykonávajú IT pracovníci vývoj intranetu a webovej stránky úradu alebo rezortu ministerstva alebo iného ÚOŠS? | G11: Zadajte hodnotu "áno" v prípade, ak IT zamestnanci zabezpečujú vývoj intranetu a webového sídla úradu alebo rezortu ministerstva alebo iného ÚOŠS. | I11: =IF(E11="áno","Webový vývojár/dizajnér","") -> 
C13: Vykonávajú IT pracovníci prevádzku a správu intranetu a webovej stránky úradu alebo rezortu ministerstva alebo iného ÚOŠS? | G13: Zadajte hodnotu "áno" v prípade, ak IT zamestnanci zabezpečujú prevádzku a správu intranetu a webového sídla úradu alebo rezortu ministerstva alebo iného ÚOŠS. | I13: =IF(E13="áno","Správca webu","") -> 
C15: Vykonávajú IT pracovníci vývoj a rozvoj agendového IS úradu alebo rezortu ministerstva alebo iného ÚOŠS? | G15: Zadajte hodnotu "áno" v prípade, ak IT zamestnanci zabezpečujú vývoj a rozvoj agendových informačných systému úradu alebo rezortu ministerstva alebo iného ÚOŠS. | I15: =IF(E15="áno","IT role spojené s vývojom IS","") -> 
C17: Vykonávajú IT pracovníci prevádzku a údržbu agendového IS úradu alebo rezortu ministerstva alebo iného ÚOŠS? | G17: Zadajte hodnotu "áno" v prípade, ak IT zamestnanci zabezpečujú prevádzku a údržbu agendových informačných systémov úradu alebo rezortu ministerstva alebo iného ÚOŠS. | I17: =IF(E17="áno","IT role spojené s prevádzkou a údržbou IS","") -> 
C19: Vykonávajú IT pracovníci základnú úroveň podpory (L1) IS úradu alebo rezortu ministerstva alebo iného ÚOŠS? | G19: Zadajte hodnotu "áno" v prípade, ak IT zamestnanci zabezpečujú prvú úroveň podpory informačných systémov rezortu. Ide o výkon činností, ako je prijímanie požiadaviek zákazníkov formou hovorov a správ z kontaktných formulárov, pomoc pri základnej navigácii pri práci s IS, zber údajov o zákazníkoch, určenie príčiny problému a jeho klasifikácia, riešenie problémov na základnej úrovni podľa predefinovaného zoznamu a možností riešenia typu problém s prihlásením, inštaláciou, nastavením, navigácia na stránke a pod. | I19: =IF(E19="áno","Pracovník IT podpory - prvá úroveň (L1) ","") -> 
C21: Vykonávajú IT pracovníci pokročilú úroveň podpory (L2) IS úradu alebo rezortu ministerstva alebo iného ÚOŠS? | G21: Zadajte hodnotu "áno" v prípade, ak IT zamestnanci zabezpečujú odborný výkon odstránenia zisteného nedostatku alebo problému. Ide o činnosť, ktorú môžeme nazývať aj technická podpora. Ide o komunikáciu priamo s používateľom s cieľom vykonania hĺbkovej technickej analýzy problému. | I21: =IF(E21="áno","Pracovník IT podpory - druhá úroveň (L2) ","") -> 

Sheet počet zamestnancov
D2: Model na počet zamestnancov vykonávajúcich podporné IT-backoffice činnosti
B5: Vstupné hodnoty | D5: Počet zamestnancov ÚOŠS | I5: Zadajte počet zamestnancov ústredného orgánu štátnej správy (ÚOŠS). Údaj zodpovedá počtu FTE úradu alebo rezortu, ktorému je zabezpečená IT podpora spojená s funkčnosťou a prevádzkou informačno-komunikačnej techniky (IKT), informačných systémov a aplikácií.
D7: Vykonáva úrad podporu IT činností vo viacerých krajoch? | I7: Zadajte hodnotu "áno" v prípade, ak úrad alebo rezort ministerstva alebo iného ÚOŠS vykonáva svoje aktivity vo viacerých pracoviskách vo viacerých krajoch, zadajte počet zamestnancov za jednotlivé kraje. Následne vyplňte počty zamestancov jednotlivých pracovísk sídliacich v jednotlivých krajoch. Súčet má zodpovedať celkovému počtu zamestnancov úradu alebo rezortu ministerstva alebo iného ÚOŠS.
F8: Počet pracovísk | G8: Počet zamestnancov
D9: Počet pracovísk a zamestnancov v Bratislavskom kraji | I9: =(IF((ROUNDUP((G9*1.41%),0.1))>=5,((ROUNDUP((G9*1.41%),0.1))+1),(ROUNDUP((G9*1.41%),0.1)))) -> 0
D10: Počet pracovísk a zamestnancov v Banskobystrickom kraji | I10: =(IF((ROUNDUP((G10*1.41%),0.1))>=5,((ROUNDUP((G10*1.41%),0.1))+1),(ROUNDUP((G10*1.41%),0.1)))) -> 0
D11: Počet pracovísk a zamestnancov v Košickom kraji | I11: 0
D12: Počet pracovísk a zamestnancov v Nitrianskom kraji | I12: 0
D13: Počet pracovísk a zamestnancov v Prešovskom kraji | I13: 0
D14: Počet pracovísk a zamestnancov v Trenčianskom kraji | I14: 0
D15: Počet pracovísk a zamestnancov v Trnavskom kraji | I15: 0
D16: Počet pracovísk a zamestnancov v Žilinskom kraji | I16: 0
D17: Spolu | F17: =SUM(F9:F16) -> 0 | G17: =SUM(G9:G16) -> 0 | I17: =SUM(I9:I16) -> 0 | K17: =IF(F7="áno",IF(G17=F5,"","Súčet za jednotlivé kraje sa nezhoduje s celkovým počtom zamestnancov ÚOŠS"),"") -> 
B19: Referenčný počet | D19: Referenčný počet zamestnancov IT podporných činností (správcov IKT) | F19: =IF(G17>=F5,I17,VLOOKUP(F5,Hárok1!B:D,3,1)) -> 0 | I19: Zobrazený číselný údaj zodpovedá referenčnému počtu zamestnancov (priemerná hodnota), ktorí zabezpečujú základnú IT podporu úradu/rezortu. Počet IT zamestnancov sa môže od náročností činností úradu/rezortu líšiť. Údaj nezohľadňuje externú IKT podporu vykonávanú dodávateľsky, preto je potrebné prihliadať na tento faktor.
D21: Referenčný počet zamestnancov správy registratúry na úrovni L1 a L2 | F21: =VLOOKUP(F5,Hárok1!F:H,3,1) -> 0 | I21: Zobrazený číselný údaj zodpovedá optimálnemu počtu zamestnancov, ktorí zabezpečujú správu registratúrneho systému na úrovni podpory L1 a L2. Počet zamestnancov správy registratúry na úrovni L1 a L2 sa môže od náročností činností úradu/rezortu líšiť.

Sheet Hárok1 (hidden)
B2: 0 | D2: 0 | F2: 0 | H2: 0
B3: 1 | C3: 74 | D3: 1 | F3: 1 | G3: 283 | H3: 1
B4: =C3+1 -> 75 | C4: =C$3*0.5+C3 -> 111 | D4: =D3 -> 1 | F4: =G3+1 -> 284 | G4: =ROUND((G$3*0.5+G3),0) -> 425 | H4: =H3 -> 1
B5: 112 | C5: =D5*C$3 -> 148 | D5: 2 | F5: 426 | G5: =H5*G$3 -> 566 | H5: =H3+1 -> 2
B6: 149 | C6: =$C$3*0.5+C5 -> 185 | D6: 2 | F6: 567 | G6: =ROUND((G$3*0.5+G5),0) -> 708 | H6: 2
B7: 186 | C7: =D7*$C$3 -> 222 | D7: 3 | F7: 709 | G7: =H7*G$3 -> 849 | H7: 3
B8: 223 | C8: =$C$3*0.5+C7 -> 259 | D8: 3 | F8: 850 | G8: =ROUND((G$3*0.5+G7),0) -> 991 | H8: 3
B9: 260 | C9: =D9*$C$3 -> 296 | D9: 4 | F9: 992 | G9: =H9*G$3 -> 1132 | H9: 4
B10: 297 | C10: =$C$3*0.5+C9 -> 333 | D10: 4 | F10: 1133 | G10: =ROUND((G$3*0.5+G9),0) -> 1274 | H10: 4
B11: 334 | C11: =D11*$C$3 -> 370 | D11: 5 | F11: 1275 | G11: =H11*G$3 -> 1415 | H11: 5
B12: 371 | C12: =$C$3*0.5+C11 -> 407 | D12: 5 | F12: 1416 | G12: =ROUND((G$3*0.5+G11),0) -> 1557 | H12: 5
B13: 408 | C13: =D13*$C$3 -> 444 | D13: 6 | F13: 1558 | G13: =H13*G$3 -> 1698 | H13: 6
B14: 445 | C14: =$C$3*0.5+C13 -> 481 | D14: 6 | F14: 1699 | G14: =ROUND((G$3*0.5+G13),0) -> 1840 | H14: 6
B15: 482 | C15: =D15*$C$3 -> 518 | D15: 7 | F15: 1841 | G15: =H15*G$3 -> 1981 | H15: 7
B16: 519 | C16: =$C$3*0.5+C15 -> 555 | D16: 7 | F16: 1982 | G16: =ROUND((G$3*0.5+G15),0) -> 2123 | H16: 7
B17: 556 | C17: =D17*$C$3 -> 592 | D17: 8 | F17: 2124 | G17: =H17*G$3 -> 2264 | H17: 8
B18: 593 | C18: =$C$3*0.5+C17 -> 629 | D18: 8 | F18: 2265 | G18: =ROUND((G$3*0.5+G17),0) -> 2406 | H18: 8
B19: 630 | C19: =D19*$C$3 -> 666 | D19: 9 | F19: 2407 | G19: =H19*G$3 -> 2547 | H19: 9
B20: 667 | C20: =$C$3*0.5+C19 -> 703 | D20: 9 | F20: 2548 | G20: =ROUND((G$3*0.5+G19),0) -> 2689 | H20: 9
B21: 704 | C21: =D21*$C$3 -> 740 | D21: 10 | F21: 2690 | G21: =H21*G$3 -> 2830 | H21: 10
B22: 741 | C22: =$C$3*0.5+C21 -> 777 | D22: 10 | F22: 2831 | G22: =ROUND((G$3*0.5+G21),0) -> 2972 | H22: 10
B23: 778 | C23: =D23*$C$3 -> 814 | D23: 11 | F23: 2973 | G23: =H23*G$3 -> 3113 | H23: 11
B24: 815 | C24: =$C$3*0.5+C23 -> 851 | D24: 11 | F24: 3114 | G24: =ROUND((G$3*0.5+G23),0) -> 3255 | H24: 11
B25: 852 | C25: =D25*$C$3 -> 888 | D25: 12 | F25: 3256 | G25: =H25*G$3 -> 3396 | H25: 12
B26: 889 | C26: =$C$3*0.5+C25 -> 925 | D26: 12 | F26: 3397 | G26: =ROUND((G$3*0.5+G25),0) -> 3538 | H26: 12
B27: 926 | C27: =D27*$C$3 -> 962 | D27: 13 | F27: 3539 | G27: =H27*G$3 -> 3679 | H27: 13
B28: 963 | C28: =$C$3*0.5+C27 -> 999 | D28: 13 | F28: 3680 | G28: =ROUND((G$3*0.5+G27),0) -> 3821 | H28: 13
B29: 1000 | C29: =D29*$C$3 -> 1036 | D29: 14 | F29: 3822 | G29: =H29*G$3 -> 3962 | H29: 14
B30: 1037 | C30: =$C$3*0.5+C29 -> 1073 | D30: 14 | F30: 3963 | G30: =ROUND((G$3*0.5+G29),0) -> 4104 | H30: 14
B31: 1074 | C31: =D31*$C$3 -> 1110 | D31: 15 | F31: 4105 | G31: =H31*G$3 -> 4245 | H31: 15
B32: 1111 | C32: =$C$3*0.5+C31 -> 1147 | D32: 15 | F32: 4246 | G32: =ROUND((G$3*0.5+G31),0) -> 4387 | H32: 15
B33: 1148 | C33: =D33*$C$3 -> 1184 | D33: 16 | F33: 4388 | G33: =H33*G$3 -> 4528 | H33: 16
B34: 1185 | C34: =$C$3*0.5+C33 -> 1221 | D34: 16 | F34: 4529 | G34: =ROUND((G$3*0.5+G33),0) -> 4670 | H34: 16
B35: 1222 | C35: =D35*$C$3 -> 1258 | D35: =D33+1 -> 17 | F35: 4671 | G35: =H35*G$3 -> 4811 | H35: 17
B36: 1259 | C36: =$C$3*0.5+C35 -> 1295 | D36: 17 | F36: 4812 | G36: =ROUND((G$3*0.5+G35),0) -> 4953 | H36: 17
B37: 1296 | C37: =D37*$C$3 -> 1332 | D37: 18 | F37: 4954 | G37: =H37*G$3 -> 5094 | H37: 18
B38: 1333 | C38: =$C$3*0.5+C37 -> 1369 | D38: 18 | F38: 5095 | G38: =ROUND((G$3*0.5+G37),0) -> 5236 | H38: 18
B39: 1370 | C39: =D39*$C$3 -> 1406 | D39: 19 | F39: 5237 | G39: =H39*G$3 -> 5377 | H39: 19
B40: 1407 | C40: =$C$3*0.5+C39 -> 1443 | D40: 19 | F40: 5378 | G40: =ROUND((G$3*0.5+G39),0) -> 5519 | H40: 19
B41: 1444 | C41: =D41*$C$3 -> 1480 | D41: 20 | F41: 5520 | G41: =H41*G$3 -> 5660 | H41: 20
B42: 1481 | C42: =$C$3*0.5+C41 -> 1517 | D42: 20 | F42: 5661 | G42: =ROUND((G$3*0.5+G41),0) -> 5802 | H42: 20
B43: 1518 | C43: =D43*$C$3 -> 1554 | D43: 21 | F43: 5803 | G43: =H43*G$3 -> 5943 | H43: 21
B44: 1555 | C44: =$C$3*0.5+C43 -> 1591 | D44: 21 | F44: 5944 | G44: =ROUND((G$3*0.5+G43),0) -> 6085 | H44: 21
B45: 1592 | C45: =D45*$C$3 -> 1628 | D45: 22 | F45: 6086 | G45: =H45*G$3 -> 6226 | H45: 22
B46: 1629 | C46: =$C$3*0.5+C45 -> 1665 | D46: 22 | F46: 6227 | G46: =ROUND((G$3*0.5+G45),0) -> 6368 | H46: 22
B47: 1666 | C47: =D47*$C$3 -> 1702 | D47: 23 | F47: 6369 | G47: =H47*G$3 -> 6509 | H47: 23
B48: 1703 | C48: =$C$3*0.5+C47 -> 1739 | D48: 23 | F48: 6510 | G48: =ROUND((G$3*0.5+G47),0) -> 6651 | H48: 23
B49: 1740 | C49: =D49*$C$3 -> 1776 | D49: 24 | F49: 6652 | G49: =H49*G$3 -> 6792 | H49: 24
B50: 1777 | C50: =$C$3*0.5+C49 -> 1813 | D50: 24 | F50: 6793 | G50: =ROUND((G$3*0.5+G49),0) -> 6934 | H50: 24
B51: 1814 | C51: =D51*$C$3 -> 1850 | D51: 25 | F51: 6935 | G51: =H51*G$3 -> 7075 | H51: 25
B52: 1851 | C52: =$C$3*0.5+C51 -> 1887 | D52: 25 | F52: 7076 | G52: =ROUND((G$3*0.5+G51),0) -> 7217 | H52: 25
B53: 1888 | C53: =D53*$C$3 -> 1924 | D53: 26 | F53: 7218 | G53: =H53*G$3 -> 7358 | H53: 26
B54: 1925 | C54: =$C$3*0.5+C53 -> 1961 | D54: 26 | F54: 7359 | G54: =ROUND((G$3*0.5+G53),0) -> 7500 | H54: 26
B55: 1962 | C55: =D55*$C$3 -> 1998 | D55: 27 | F55: 7501 | G55: =H55*G$3 -> 7641 | H55: 27
B56: 1999 | C56: =$C$3*0.5+C55 -> 2035 | D56: 27 | F56: 7642 | G56: =ROUND((G$3*0.5+G55),0) -> 7783 | H56: 27
B57: 2036 | C57: =D57*$C$3 -> 2072 | D57: 28 | F57: 7784 | G57: =H57*G$3 -> 7924 | H57: 28
B58: 2073 | C58: =$C$3*0.5+C57 -> 2109 | D58: 28 | F58: 7925 | G58: =ROUND((G$3*0.5+G57),0) -> 8066 | H58: 28
B59: 2110 | C59: =D59*$C$3 -> 2146 | D59: 29 | F59: 8067 | G59: =H59*G$3 -> 8207 | H59: 29
B60: 2147 | C60: =$C$3*0.5+C59 -> 2183 | D60: 29 | F60: 8208 | G60: =ROUND((G$3*0.5+G59),0) -> 8349 | H60: 29
B61: 2184 | C61: =D61*$C$3 -> 2220 | D61: 30 | F61: 8350 | G61: =H61*G$3 -> 8490 | H61: 30
B62: 2221 | C62: =$C$3*0.5+C61 -> 2257 | D62: 30 | F62: 8491 | G62: =ROUND((G$3*0.5+G61),0) -> 8632 | H62: 30
B63: 2258 | C63: =D63*$C$3 -> 2294 | D63: 31 | F63: 8633 | G63: =H63*G$3 -> 8773 | H63: 31
B64: 2295 | C64: =$C$3*0.5+C63 -> 2331 | D64: 31 | F64: 8774 | G64: =ROUND((G$3*0.5+G63),0) -> 8915 | H64: 31
B65: 2332 | C65: =D65*$C$3 -> 2368 | D65: 32 | F65: 8916 | G65: =H65*G$3 -> 9056 | H65: 32
B66: 2369 | C66: =$C$3*0.5+C65 -> 2405 | D66: 32 | F66: 9057 | G66: =ROUND((G$3*0.5+G65),0) -> 9198 | H66: 32
B67: 2406 | C67: =D67*$C$3 -> 2442 | D67: 33 | F67: 9199 | G67: =H67*G$3 -> 9339 | H67: 33
B68: =C67+1 -> 2443 | C68: =$C$3*0.5+C67 -> 2479 | D68: 33 | F68: =G67+1 -> 9340 | G68: =ROUND((G$3*0.5+G67),0) -> 9481 | H68: 33
B69: 2480 | C69: =D69*$C$3 -> 2516 | D69: 34 | F69: 9482 | G69: =H69*G$3 -> 9622 | H69: =H67+1 -> 34
B70: 2517 | C70: =$C$3*0.5+C69 -> 2553 | D70: 34 | F70: 9623 | G70: =ROUND((G$3*0.5+G69),0) -> 9764 | H70: 34
B71: 2554 | C71: =D71*$C$3 -> 2590 | D71: 35 | F71: 9765 | G71: =H71*G$3 -> 9905 | H71: 35
B72: 2591 | C72: =$C$3*0.5+C71 -> 2627 | D72: 35 | F72: 9906 | G72: =ROUND((G$3*0.5+G71),0) -> 10047 | H72: 35
B73: 2628 | C73: =D73*$C$3 -> 2664 | D73: 36 | F73: 10048 | G73: =H73*G$3 -> 10188 | H73: 36
B74: 2665 | C74: =$C$3*0.5+C73 -> 2701 | D74: 36 | F74: 10189 | G74: =ROUND((G$3*0.5+G73),0) -> 10330 | H74: 36
B75: 2702 | C75: =D75*$C$3 -> 2738 | D75: 37 | F75: 10331 | G75: =H75*G$3 -> 10471 | H75: 37
B76: 2739 | C76: =$C$3*0.5+C75 -> 2775 | D76: 37 | F76: 10472 | G76: =ROUND((G$3*0.5+G75),0) -> 10613 | H76: 37
B77: 2776 | C77: =D77*$C$3 -> 2812 | D77: 38 | F77: 10614 | G77: =H77*G$3 -> 10754 | H77: 38
B78: 2813 | C78: =$C$3*0.5+C77 -> 2849 | D78: 38 | F78: 10755 | G78: =ROUND((G$3*0.5+G77),0) -> 10896 | H78: 38
B79: 2850 | C79: =D79*$C$3 -> 2886 | D79: 39 | F79: 10897 | G79: =H79*G$3 -> 11037 | H79: 39
B80: 2887 | C80: =$C$3*0.5+C79 -> 2923 | D80: 39 | F80: 11038 | G80: =ROUND((G$3*0.5+G79),0) -> 11179 | H80: 39
B81: 2924 | C81: =D81*$C$3 -> 2960 | D81: 40 | F81: 11180 | G81: =H81*G$3 -> 11320 | H81: 40
B82: 2961 | C82: =$C$3*0.5+C81 -> 2997 | D82: 40 | F82: 11321 | G82: =ROUND((G$3*0.5+G81),0) -> 11462 | H82: 40
B83: 2998 | C83: =D83*$C$3 -> 3034 | D83: 41 | F83: 11463 | G83: =H83*G$3 -> 11603 | H83: 41
B84: 3035 | C84: =$C$3*0.5+C83 -> 3071 | D84: 41 | F84: 11604 | G84: =ROUND((G$3*0.5+G83),0) -> 11745 | H84: 41
B85: 3072 | C85: =D85*$C$3 -> 3108 | D85: 42 | F85: 11746 | G85: =H85*G$3 -> 11886 | H85: 42
B86: 3109 | C86: =$C$3*0.5+C85 -> 3145 | D86: 42 | F86: 11887 | G86: =ROUND((G$3*0.5+G85),0) -> 12028 | H86: 42
B87: 3146 | C87: =D87*$C$3 -> 3182 | D87: 43 | F87: 12029 | G87: =H87*G$3 -> 12169 | H87: 43
B88: 3183 | C88: =$C$3*0.5+C87 -> 3219 | D88: 43 | F88: 12170 | G88: =ROUND((G$3*0.5+G87),0) -> 12311 | H88: 43
B89: 3220 | C89: =D89*$C$3 -> 3256 | D89: 44 | F89: 12312 | G89: =H89*G$3 -> 12452 | H89: 44
B90: 3257 | C90: =$C$3*0.5+C89 -> 3293 | D90: 44 | F90: 12453 | G90: =ROUND((G$3*0.5+G89),0) -> 12594 | H90: 44
B91: 3294 | C91: =D91*$C$3 -> 3330 | D91: 45 | F91: 12595 | G91: =H91*G$3 -> 12735 | H91: 45
B92: 3331 | C92: =$C$3*0.5+C91 -> 3367 | D92: 45 | F92: 12736 | G92: =ROUND((G$3*0.5+G91),0) -> 12877 | H92: 45
B93: 3368 | C93: =D93*$C$3 -> 3404 | D93: 46 | F93: 12878 | G93: =H93*G$3 -> 13018 | H93: 46
B94: 3405 | C94: =$C$3*0.5+C93 -> 3441 | D94: 46 | F94: 13019 | G94: =ROUND((G$3*0.5+G93),0) -> 13160 | H94: 46
B95: 3442 | C95: =D95*$C$3 -> 3478 | D95: 47 | F95: 13161 | G95: =H95*G$3 -> 13301 | H95: 47
B96: 3479 | C96: =$C$3*0.5+C95 -> 3515 | D96: 47 | F96: 13302 | G96: =ROUND((G$3*0.5+G95),0) -> 13443 | H96: 47
B97: 3516 | C97: =D97*$C$3 -> 3552 | D97: 48 | F97: 13444 | G97: =H97*G$3 -> 13584 | H97: 48
B98: 3553 | C98: =$C$3*0.5+C97 -> 3589 | D98: 48 | F98: 13585 | G98: =ROUND((G$3*0.5+G97),0) -> 13726 | H98: 48
B99: 3590 | C99: =D99*$C$3 -> 3626 | D99: =D97+1 -> 49 | F99: 13727 | G99: =H99*G$3 -> 13867 | H99: 49
B100: 3627 | C100: =$C$3*0.5+C99 -> 3663 | D100: 49 | F100: 13868 | G100: =ROUND((G$3*0.5+G99),0) -> 14009 | H100: 49
B101: 3664 | C101: =D101*$C$3 -> 3700 | D101: 50 | F101: 14010 | G101: =H101*G$3 -> 14150 | H101: 50
B102: 3701 | C102: =$C$3*0.5+C101 -> 3737 | D102: 50 | F102: 14151 | G102: =ROUND((G$3*0.5+G101),0) -> 14292 | H102: 50
B103: 3738 | C103: =D103*$C$3 -> 3774 | D103: 51 | F103: 14293 | G103: =H103*G$3 -> 14433 | H103: 51
B104: 3775 | C104: =$C$3*0.5+C103 -> 3811 | D104: 51 | F104: 14434 | G104: =ROUND((G$3*0.5+G103),0) -> 14575 | H104: 51
B105: 3812 | C105: =D105*$C$3 -> 3848 | D105: 52 | F105: 14576 | G105: =H105*G$3 -> 14716 | H105: 52
B106: 3849 | C106: =$C$3*0.5+C105 -> 3885 | D106: 52 | F106: 14717 | G106: =ROUND((G$3*0.5+G105),0) -> 14858 | H106: 52
B107: 3886 | C107: =D107*$C$3 -> 3922 | D107: 53 | F107: 14859 | G107: =H107*G$3 -> 14999 | H107: 53
B108: 3923 | C108: =$C$3*0.5+C107 -> 3959 | D108: 53 | F108: 15000 | G108: =ROUND((G$3*0.5+G107),0) -> 15141 | H108: 53
B109: 3960 | C109: =D109*$C$3 -> 3996 | D109: 54 | F109: 15142 | G109: =H109*G$3 -> 15282 | H109: 54
B110: 3997 | C110: =$C$3*0.5+C109 -> 4033 | D110: 54 | F110: 15283 | G110: =ROUND((G$3*0.5+G109),0) -> 15424 | H110: 54
B111: 4034 | C111: =D111*$C$3 -> 4070 | D111: 55 | F111: 15425 | G111: =H111*G$3 -> 15565 | H111: 55
B112: 4071 | C112: =$C$3*0.5+C111 -> 4107 | D112: 55 | F112: 15566 | G112: =ROUND((G$3*0.5+G111),0) -> 15707 | H112: 55
B113: 4108 | C113: =D113*$C$3 -> 4144 | D113: 56 | F113: 15708 | G113: =H113*G$3 -> 15848 | H113: 56
B114: 4145 | C114: =$C$3*0.5+C113 -> 4181 | D114: 56 | F114: 15849 | G114: =ROUND((G$3*0.5+G113),0) -> 15990 | H114: 56
B115: 4182 | C115: =D115*$C$3 -> 4218 | D115: 57 | F115: 15991 | G115: =H115*G$3 -> 16131 | H115: 57
B116: 4219 | C116: =$C$3*0.5+C115 -> 4255 | D116: 57 | F116: 16132 | G116: =ROUND((G$3*0.5+G115),0) -> 16273 | H116: 57
B117: 4256 | C117: =D117*$C$3 -> 4292 | D117: 58 | F117: 16274 | G117: =H117*G$3 -> 16414 | H117: 58
B118: 4293 | C118: =$C$3*0.5+C117 -> 4329 | D118: 58 | F118: 16415 | G118: =ROUND((G$3*0.5+G117),0) -> 16556 | H118: 58
B119: 4330 | C119: =D119*$C$3 -> 4366 | D119: 59 | F119: 16557 | G119: =H119*G$3 -> 16697 | H119: 59
B120: 4367 | C120: =$C$3*0.5+C119 -> 4403 | D120: 59 | F120: 16698 | G120: =ROUND((G$3*0.5+G119),0) -> 16839 | H120: 59
B121: 4404 | C121: =D121*$C$3 -> 4440 | D121: 60 | F121: 16840 | G121: =H121*G$3 -> 16980 | H121: 60
B122: 4441 | C122: =$C$3*0.5+C121 -> 4477 | D122: 60 | F122: 16981 | G122: =ROUND((G$3*0.5+G121),0) -> 17122 | H122: 60
B123: 4478 | C123: =D123*$C$3 -> 4514 | D123: 61 | F123: 17123 | G123: =H123*G$3 -> 17263 | H123: 61
B124: 4515 | C124: =$C$3*0.5+C123 -> 4551 | D124: 61 | F124: 17264 | G124: =ROUND((G$3*0.5+G123),0) -> 17405 | H124: 61
B125: 4552 | C125: =D125*$C$3 -> 4588 | D125: 62 | F125: 17406 | G125: =H125*G$3 -> 17546 | H125: 62
B126: 4589 | C126: =$C$3*0.5+C125 -> 4625 | D126: 62 | F126: 17547 | G126: =ROUND((G$3*0.5+G125),0) -> 17688 | H126: 62
B127: 4626 | C127: =D127*$C$3 -> 4662 | D127: 63 | F127: 17689 | G127: =H127*G$3 -> 17829 | H127: 63
B128: 4663 | C128: =$C$3*0.5+C127 -> 4699 | D128: 63 | F128: 17830 | G128: =ROUND((G$3*0.5+G127),0) -> 17971 | H128: 63
B129: 4700 | C129: =D129*$C$3 -> 4736 | D129: 64 | F129: 17972 | G129: =H129*G$3 -> 18112 | H129: 64
B130: 4737 | C130: =$C$3*0.5+C129 -> 4773 | D130: 64 | F130: 18113 | G130: =ROUND((G$3*0.5+G129),0) -> 18254 | H130: 64
B131: 4774 | C131: =D131*$C$3 -> 4810 | D131: 65 | F131: 18255 | G131: =H131*G$3 -> 18395 | H131: 65
B132: =C131+1 -> 4811 | C132: =$C$3*0.5+C131 -> 4847 | D132: 65 | F132: =G131+1 -> 18396 | G132: =ROUND((G$3*0.5+G131),0) -> 18537 | H132: 65
B133: 4848 | C133: =D133*$C$3 -> 4884 | D133: 66 | F133: 18538 | G133: =H133*G$3 -> 18678 | H133: =H131+1 -> 66
B134: 4885 | C134: =$C$3*0.5+C133 -> 4921 | D134: 66 | F134: 18679 | G134: =ROUND((G$3*0.5+G133),0) -> 18820 | H134: 66
B135: 4922 | C135: =D135*$C$3 -> 4958 | D135: 67 | F135: 18821 | G135: =H135*G$3 -> 18961 | H135: 67
B136: 4959 | C136: =$C$3*0.5+C135 -> 4995 | D136: 67 | F136: 18962 | G136: =ROUND((G$3*0.5+G135),0) -> 19103 | H136: 67
B137: 4996 | C137: =D137*$C$3 -> 5032 | D137: 68 | F137: 19104 | G137: =H137*G$3 -> 19244 | H137: 68
B138: 5033 | C138: =$C$3*0.5+C137 -> 5069 | D138: 68 | F138: 19245 | G138: =ROUND((G$3*0.5+G137),0) -> 19386 | H138: 68
B139: 5070 | C139: =D139*$C$3 -> 5106 | D139: 69 | F139: 19387 | G139: =H139*G$3 -> 19527 | H139: 69
B140: 5107 | C140: =$C$3*0.5+C139 -> 5143 | D140: 69 | F140: 19528 | G140: =ROUND((G$3*0.5+G139),0) -> 19669 | H140: 69
B141: 5144 | C141: =D141*$C$3 -> 5180 | D141: 70 | F141: 19670 | G141: =H141*G$3 -> 19810 | H141: 70
B142: 5181 | C142: =$C$3*0.5+C141 -> 5217 | D142: 70 | F142: 19811 | G142: =ROUND((G$3*0.5+G141),0) -> 19952 | H142: 70
B143: 5218 | C143: =D143*$C$3 -> 5254 | D143: 71 | F143: 19953 | G143: =H143*G$3 -> 20093 | H143: 71
B144: 5255 | C144: =$C$3*0.5+C143 -> 5291 | D144: 71 | F144: 20094 | G144: =ROUND((G$3*0.5+G143),0) -> 20235 | H144: 71
B145: 5292 | C145: =D145*$C$3 -> 5328 | D145: 72 | F145: 20236 | G145: =H145*G$3 -> 20376 | H145: 72
B146: 5329 | C146: =$C$3*0.5+C145 -> 5365 | D146: 72 | F146: 20377 | G146: =ROUND((G$3*0.5+G145),0) -> 20518 | H146: 72
B147: 5366 | C147: =D147*$C$3 -> 5402 | D147: 73 | F147: 20519 | G147: =H147*G$3 -> 20659 | H147: 73
B148: 5403 | C148: =$C$3*0.5+C147 -> 5439 | D148: 73 | F148: 20660 | G148: =ROUND((G$3*0.5+G147),0) -> 20801 | H148: 73
B149: 5440 | C149: =D149*$C$3 -> 5476 | D149: 74 | F149: 20802 | G149: =H149*G$3 -> 20942 | H149: 74
B150: 5477 | C150: =$C$3*0.5+C149 -> 5513 | D150: 74 | F150: 20943 | G150: =ROUND((G$3*0.5+G149),0) -> 21084 | H150: 74
B151: 5514 | C151: =D151*$C$3 -> 5550 | D151: 75 | F151: 21085 | G151: =H151*G$3 -> 21225 | H151: 75
B152: 5551 | C152: =$C$3*0.5+C151 -> 5587 | D152: 75 | F152: 21226 | G152: =ROUND((G$3*0.5+G151),0) -> 21367 | H152: 75
B153: 5588 | C153: =D153*$C$3 -> 5624 | D153: 76 | F153: 21368 | G153: =H153*G$3 -> 21508 | H153: 76
B154: 5625 | C154: =$C$3*0.5+C153 -> 5661 | D154: 76 | F154: 21509 | G154: =ROUND((G$3*0.5+G153),0) -> 21650 | H154: 76
B155: 5662 | C155: =D155*$C$3 -> 5698 | D155: 77 | F155: 21651 | G155: =H155*G$3 -> 21791 | H155: 77
B156: 5699 | C156: =$C$3*0.5+C155 -> 5735 | D156: 77 | F156: 21792 | G156: =ROUND((G$3*0.5+G155),0) -> 21933 | H156: 77
B157: 5736 | C157: =D157*$C$3 -> 5772 | D157: 78 | F157: 21934 | G157: =H157*G$3 -> 22074 | H157: 78
B158: 5773 | C158: =$C$3*0.5+C157 -> 5809 | D158: 78 | F158: 22075 | G158: =ROUND((G$3*0.5+G157),0) -> 22216 | H158: 78
B159: 5810 | C159: =D159*$C$3 -> 5846 | D159: 79 | F159: 22217 | G159: =H159*G$3 -> 22357 | H159: 79
B160: 5847 | C160: =$C$3*0.5+C159 -> 5883 | D160: 79 | F160: 22358 | G160: =ROUND((G$3*0.5+G159),0) -> 22499 | H160: 79
B161: 5884 | C161: =D161*$C$3 -> 5920 | D161: 80 | F161: 22500 | G161: =H161*G$3 -> 22640 | H161: 80
B162: 5921 | C162: =$C$3*0.5+C161 -> 5957 | D162: 80 | F162: 22641 | G162: =ROUND((G$3*0.5+G161),0) -> 22782 | H162: 80
B163: 5958 | C163: =D163*$C$3 -> 5994 | D163: =D161+1 -> 81 | F163: 22783 | G163: =H163*G$3 -> 22923 | H163: 81
B164: 5995 | C164: =$C$3*0.5+C163 -> 6031 | D164: 81 | F164: 22924 | G164: =ROUND((G$3*0.5+G163),0) -> 23065 | H164: 81
B165: 6032 | C165: =D165*$C$3 -> 6068 | D165: 82 | F165: 23066 | G165: =H165*G$3 -> 23206 | H165: 82
B166: 6069 | C166: =$C$3*0.5+C165 -> 6105 | D166: 82 | F166: 23207 | G166: =ROUND((G$3*0.5+G165),0) -> 23348 | H166: 82
B167: 6106 | C167: =D167*$C$3 -> 6142 | D167: 83 | F167: 23349 | G167: =H167*G$3 -> 23489 | H167: 83
B168: 6143 | C168: =$C$3*0.5+C167 -> 6179 | D168: 83 | F168: 23490 | G168: =ROUND((G$3*0.5+G167),0) -> 23631 | H168: 83
B169: 6180 | C169: =D169*$C$3 -> 6216 | D169: 84 | F169: 23632 | G169: =H169*G$3 -> 23772 | H169: 84
B170: 6217 | C170: =$C$3*0.5+C169 -> 6253 | D170: 84 | F170: 23773 | G170: =ROUND((G$3*0.5+G169),0) -> 23914 | H170: 84
B171: 6254 | C171: =D171*$C$3 -> 6290 | D171: 85 | F171: 23915 | G171: =H171*G$3 -> 24055 | H171: 85
B172: 6291 | C172: =$C$3*0.5+C171 -> 6327 | D172: 85 | F172: 24056 | G172: =ROUND((G$3*0.5+G171),0) -> 24197 | H172: 85
B173: 6328 | C173: =D173*$C$3 -> 6364 | D173: 86 | F173: 24198 | G173: =H173*G$3 -> 24338 | H173: 86
B174: 6365 | C174: =$C$3*0.5+C173 -> 6401 | D174: 86 | F174: 24339 | G174: =ROUND((G$3*0.5+G173),0) -> 24480 | H174: 86
B175: 6402 | C175: =D175*$C$3 -> 6438 | D175: 87 | F175: 24481 | G175: =H175*G$3 -> 24621 | H175: 87
B176: 6439 | C176: =$C$3*0.5+C175 -> 6475 | D176: 87 | F176: 24622 | G176: =ROUND((G$3*0.5+G175),0) -> 24763 | H176: 87
B177: 6476 | C177: =D177*$C$3 -> 6512 | D177: 88 | F177: 24764 | G177: =H177*G$3 -> 24904 | H177: 88
B178: 6513 | C178: =$C$3*0.5+C177 -> 6549 | D178: 88 | F178: 24905 | G178: =ROUND((G$3*0.5+G177),0) -> 25046 | H178: 88
B179: 6550 | C179: =D179*$C$3 -> 6586 | D179: 89 | F179: 25047 | G179: =H179*G$3 -> 25187 | H179: 89
B180: 6587 | C180: =$C$3*0.5+C179 -> 6623 | D180: 89 | F180: 25188 | G180: =ROUND((G$3*0.5+G179),0) -> 25329 | H180: 89
B181: 6624 | C181: =D181*$C$3 -> 6660 | D181: 90 | F181: 25330 | G181: =H181*G$3 -> 25470 | H181: 90
B182: 6661 | C182: =$C$3*0.5+C181 -> 6697 | D182: 90 | F182: 25471 | G182: =ROUND((G$3*0.5+G181),0) -> 25612 | H182: 90
B183: 6698 | C183: =D183*$C$3 -> 6734 | D183: 91 | F183: 25613 | G183: =H183*G$3 -> 25753 | H183: 91
B184: 6735 | C184: =$C$3*0.5+C183 -> 6771 | D184: 91 | F184: 25754 | G184: =ROUND((G$3*0.5+G183),0) -> 25895 | H184: 91
B185: 6772 | C185: =D185*$C$3 -> 6808 | D185: 92 | F185: 25896 | G185: =H185*G$3 -> 26036 | H185: 92
B186: 6809 | C186: =$C$3*0.5+C185 -> 6845 | D186: 92 | F186: 26037 | G186: =ROUND((G$3*0.5+G185),0) -> 26178 | H186: 92
B187: 6846 | C187: =D187*$C$3 -> 6882 | D187: 93 | F187: 26179 | G187: =H187*G$3 -> 26319 | H187: 93
B188: 6883 | C188: =$C$3*0.5+C187 -> 6919 | D188: 93 | F188: 26320 | G188: =ROUND((G$3*0.5+G187),0) -> 26461 | H188: 93
B189: 6920 | C189: =D189*$C$3 -> 6956 | D189: 94 | F189: 26462 | G189: =H189*G$3 -> 26602 | H189: 94
B190: 6957 | C190: =$C$3*0.5+C189 -> 6993 | D190: 94 | F190: 26603 | G190: =ROUND((G$3*0.5+G189),0) -> 26744 | H190: 94
B191: 6994 | C191: =D191*$C$3 -> 7030 | D191: 95 | F191: 26745 | G191: =H191*G$3 -> 26885 | H191: 95
B192: 7031 | C192: =$C$3*0.5+C191 -> 7067 | D192: 95 | F192: 26886 | G192: =ROUND((G$3*0.5+G191),0) -> 27027 | H192: 95
B193: 7068 | C193: =D193*$C$3 -> 7104 | D193: 96 | F193: 27028 | G193: =H193*G$3 -> 27168 | H193: 96
B194: 7105 | C194: =$C$3*0.5+C193 -> 7141 | D194: 96 | F194: 27169 | G194: =ROUND((G$3*0.5+G193),0) -> 27310 | H194: 96
B195: 7142 | C195: =D195*$C$3 -> 7178 | D195: 97 | F195: 27311 | G195: =H195*G$3 -> 27451 | H195: 97
B196: =C195+1 -> 7179 | C196: =$C$3*0.5+C195 -> 7215 | D196: 97 | F196: =G195+1 -> 27452 | G196: =ROUND((G$3*0.5+G195),0) -> 27593 | H196: 97
B197: 7216 | C197: =D197*$C$3 -> 7252 | D197: 98 | F197: 27594 | G197: =H197*G$3 -> 27734 | H197: =H195+1 -> 98
B198: 7253 | C198: =$C$3*0.5+C197 -> 7289 | D198: 98 | F198: 27735 | G198: =ROUND((G$3*0.5+G197),0) -> 27876 | H198: 98
B199: 7290 | C199: =D199*$C$3 -> 7326 | D199: 99 | F199: 27877 | G199: =H199*G$3 -> 28017 | H199: 99
B200: 7327 | C200: =$C$3*0.5+C199 -> 7363 | D200: 99 | F200: 28018 | G200: =ROUND((G$3*0.5+G199),0) -> 28159 | H200: 99
B201: 7364 | C201: =D201*$C$3 -> 7400 | D201: 100 | F201: 28160 | G201: =H201*G$3 -> 28300 | H201: 100
... 911 more rows

Sheet model centralizácia webov
D2: Model centralizácie vývoja a správy webových portálov | G2: Odporúčanie
B5: Krok 1 | D5: Sú webové sídla ÚOŠS a jeho podriadených organizácii v súlade s jednotným dizajn manuálom elektronických služieb a webových sídiel? | G5: =IF(E5="áno",B7,IF(E5="nie","Zabezpečiť súlad s Jednotným dizajn manuálom elektronických služieb a webových sídiel pri tvorbe webových sídel všetkých organizácií rezortu","")) -> 
B7: Krok 2 | D7: Sú webové sídla organizácií rezortu vytvorené na rovnakej technologickej platforme? | G7: =IF(E7="áno",B13,IF(E7="nie","Zjednotiť technologickú platformu webových sídiel organizácií rezortu","")) -> 
B9: Krok 3 | D9: Zabezpečuje ministerstvo alebo iný ÚOŠS vývoj webových sídiel internými kapacitami? | G9: =IF(E9="áno",B13,IF(E9="nie","Zabezpečiť ","")) -> 
B11: Krok 4 | D11: Zabezpečuje ministerstvo alebo iný ÚOŠS správu webových sídiel internými kapacitami? | G11: =IF(E11="áno",B13,IF(E11="nie","Zabezpečiť ","")) -> 
B13: Krok 5 | D13: Zabezpečuje vývoj a správu webových sídiel jedna organizácia rezortu? | G13: =IF(E13="áno",B15,IF(E13="nie","Poveriť jednu organizáciu rezortu, ktorej zamestnanci budú vykonávať vývoj a správu webových sídiel rezortu","")) -> 
B15: Krok 6 | D15: Sú dostatočne zabezpečené personálne a finančné kapacity na vývoj a správu webových sídiel? | G15: =IF(E15="áno","Sú vytvorené predpokady na centralizáciu vývoja a správy webových sídiel na rezortnej úrovni",IF(E15="nie","Zoskupiť zamestnancov organizácií rezortu do jednej organizácie rezortu, ktorej zamestnanci budú vykonávať vývoj a správu webových sídiel","")) -> 
B17: Krok 7 | D17: Sú webové sídla všetkých organizácií ÚOŠS v súlade s jednotným dizajn manuálom elektronických služieb a webových sídiel? | G17: =IF(E17="áno",B19,IF(E17="nie","Zabezpečiť súlad s Jednotným dizajn manuálom elektronických služieb a webových sídiel pri tvorbe webových sídel všetkých organizácií ÚOŠS","")) -> 
B19: Krok 8 | D19: Sú webové sídla všetkých organizácií ÚOŠS vytvorené na rovnakej technologickej platforme? | G19: =IF(E19="áno",B21,IF(E19="nie","Zjednotiť technologickú platformu webových sídiel všetkých organizácií ÚOŠS","")) -> 
B21: Krok 9 | D21: Zabezpečuje vývoj a správu webových sídiel jedna organizácia pre všetky organizácie rezortov? | G21: =IF(E21="áno",B23,IF(E21="nie","Zriadiť/poveriť jednu organizáciu, ktorej zamestnanci budú vykonávať vývoj a správu webových sídiel všetkých organizácií ÚOŠS","")) -> 
B23: Krok 10 | D23: Sú dostatočne zabezpečené personálne a finančné kapacity na vývoj a správu webových sídiel? | G23: =IF(E23="áno","Sú vytvorené predpokady na centralizáciu vývoja a správy webových sídiel na národnej úrovni",IF(E23="nie","Zoskupiť zamestnancov organizácií rezortu do jednej organizácie, ktorej zamestnanci budú vykonávať vývoj a správu webových sídiel","")) -> 

Sheet Návod
A2: Postup pri používaní modelov
A3: 1. | B3: Používateľ vypĺňa len povolené bunky. Sú vyznačené zelenou farbou. Bunky, kde je uvedené "počet" je potrebné zadať číselnú hodnotu. Pri bunkách, kde je položená otázka, je zvolená možnosť výberu áno/nie. Iné hodnoty nie je možné do uvedených buniek zadať. Používateľ je vyzvaný upozornením.
A4: 2. | B4: Bližší popis, aké hodnoty vyplniť je uvedený pri jednotlivých bunkách, ktoré je potrebné vyplniť je uvedený v stĺpci "G" v hárku "štruktúra zamestnancov" a v stĺpci "I" v hárku "počet zamestnancov"
A5: 3. | B5: Výsledné hodnoty (Referenčný počet zamestnancov IT podporných činností (správcov IKT) a Referenčný počet správcov registratúry na úrovni L1 a L2) sa zobrazia referenčné hodnoty počtu týchto zamestnancov prisluchajúcich na počet zamestancov v organizácii.
A6: 4. | B6: Referenčná pracovná pozícia sa zobrazí v stĺpci "I" po zadaní vstupnej hodnota "áno" (za predpokladu spĺňajúceho popisu činností) - hárok "štruktúra zamestnancov)

Sheet vstupné premenné (hidden)
C2: áno
C3: nie
